[Event "Chinese Championship-B Men 2024"]
[Site "Liaocheng"]
[Date "2024.04.25"]
[Round "9.10"]
[White "Gong, Changda"]
[Black "Jiang, Bryan Liu"]
[Result "1-0"]
[ECO "A11"]
[WhiteElo "2170"]
[BlackElo "1800"]
[Annotator "TA"]
[PlyCount "75"]
[EventDate "2024.04.24"]
[EventType "swiss"]
[EventCountry "CHN"]
[SourceTitle "playchess.com"]
[Source "ChessBase"]
[SourceQuality "1"]
[TimeControl "5400+30"]

{[%evp 10,75,27,22,28,27,20,12,41,0,15,22,40,33,41,59,59,34,59,49,47,44,41,43,47,47,64,67,63,32,62,66,85,86,86,83,110,103,105,103,120,102,120,106,154,139,274,277,292,245,274,264,355,359,342,349,597,600,639,630,639,649,703,638,639,635,691,684]} 1. c4 {[%emt 0:02:49]} c6 {[%emt 0:00:11]} 2. g3 {[%emt 0:00:14]} d5 {[%emt 0:00:19]} 3. Nf3 {[%emt 0:00:05]} Nf6 {[%emt 0:00:17]} 4. Bg2 {[%emt 0:00:03]} Bf5 {[%emt 0:00:39]} 5. Qb3 {[%emt 0:00:07]} Qb6 {[%emt 0:01:49]} 6. d3 {[%emt 0:00:23]} e6 {[%emt 0:05:07]} 7. Be3 {[%emt 0:00:05]} Qxb3 {[%emt 0:00:36]} 8. axb3 {[%emt 0:00:02]} a6 {[%emt 0:00:59] The position is equal.} 9. Bd4 {[%emt 0:01:06]} Nbd7 {[%emt 0:00:41]} 10. Bc3 {[%emt 0:00:35]} Rc8 {[%emt 0:05:16]} 11. Nh4 {[%emt 0:00:39]} Bg6 {[%emt 0:00:21]} 12. Nxg6 {[%emt 0:00:35]} hxg6 {[%emt 0:01:04]} 13. Nd2 {[%emt 0:00:59][%cal Bb1d2,Bd2b3,Bb3a5][%mdl 32]} e5 {[%emt 0:16:14]} 14. e3 {[%emt 0:00:48]} Bd6 {[%emt 0:00:57]} 15. h4 {[%emt 0:06:36]} O-O {[%emt 0:06:00]} 16. O-O {[%emt 0:12:46]} Rfe8 {[%emt 0:00:51]} 17. b4 {[%emt 0:04:15]} Nf8 {[%emt 0:04:55]} 18. Nb3 {[%emt 0:05:11]} Ne6 {[%emt 0:04:02]} 19. Rfd1 {[%emt 0:03:39]} Rcd8 {[%emt 0:05:16]} 20. Na5 {[%emt 0:02:14]} Re7 {[%emt 0:01:03]} 21. e4 {[%emt 0:15:10]} d4 {[%emt 0:07:52]} 22. Bd2 {[%emt 0:01:41]} Nh5 {[%emt 0:01:23]} 23. Bh3 {[%emt 0:00:42]} Rb8 {[%emt 0:04:10]} 24. Rf1 {[%emt 0:03:22]} Rf8 {[%emt 0:08:34]} 25. Bg4 {[%emt 0:03:58][%cal Bh3g4,Bg4d1,Bd1b3,Bb3e6,Be6c4,Bc4a6][%mdl 32]} Nf6 {[%emt 0:08:36]} 26. Bd1 {[%emt 0:02:30]} Nh7 {[%emt 0:00:47]} (26... Rb8 $142 27. c5 Bc7) 27. f4 {[%emt 0:00:56]} f5 {[%emt 0:01:24]} (27... exf4 $16 28. gxf4 Bb8) 28. c5 $18 {[%emt 0:08:17]} Bb8 {[%emt 0:00:19]} 29. Bb3 {[%emt 0:00:42] Black must now prevent exf5.} fxe4 {[%emt 0:02:03]} 30. dxe4 {[%emt 0:01:00][%cal Bd3e4,Be4e5][%mdl 32] [#] f5 would now be deadly.} exf4 {[%emt 0:00:39]} 31. gxf4 {[%emt 0:00:13] Hoping for f5.} Kh8 {[%emt 0:00:58][%cal Re6f4]} 32. e5 {[%emt 0:01:39]} Rd8 $2 {[%emt 0:04:55] [#]} (32... Nd8 {keeps fighting.} 33. Bc2 Rg8) 33. Nxb7 $1 {[%emt 0:01:44][%mdl 512] White is clearly winning.} Rxb7 {[%emt 0:00:12]} 34. Bxe6 {[%emt 0:00:05]} Re7 {[%emt 0:00:35]} 35. Bc4 {[%emt 0:00:56]} d3 {[%emt 0:00:54]} 36. Ra3 {[%emt 0:00:30]} Rd4 {[%emt 0:01:19]} 37. Bxa6 {[%emt 0:00:18]} Red7 {[%emt 0:00:34]} 38. Rf3 {[%emt 0:00:19] Weighted Error Value: White=0.09 (flawless) /Black=0.28 (precise) .  Mistake:       	---       	Black=3      Inaccurate:     	White=2     	Black=4      OK:         	White=12    	Black=8      Best:        	White=1     	---} 1-0

[Event "Chinese Championship-B Men 2024"]
[Site "Liaocheng"]
[Date "2024.04.25"]
[Round "9.11"]
[White "Xu, Ziyuan"]
[Black "Yu, Chaojie"]
[Result "0-1"]
[ECO "B11"]
[WhiteElo "1872"]
[BlackElo "2047"]
[Annotator "RC"]
[PlyCount "124"]
[EventDate "2024.04.24"]
[EventType "swiss"]
[EventCountry "CHN"]
[SourceTitle "playchess.com"]
[Source "ChessBase"]
[SourceQuality "1"]
[TimeControl "5400+30"]

1. e4 {[%emt 0:00:02]} c6 {[%emt 0:00:16]} 2. Nc3 {[%emt 0:00:27]} d5 {[%emt 0:00:08]} 3. Nf3 {[%emt 0:00:07]} dxe4 {[%emt 0:00:23]} 4. Nxe4 {[%emt 0:00:06]} Nf6 {[%emt 0:00:16]} 5. Qe2 {[%emt 0:00:05]} Nxe4 {[%emt 0:00:24]} 6. Qxe4 {[%emt 0:00:04]} Nd7 {[%emt 0:00:22]} 7. Bc4 {[%emt 0:00:08]} Nf6 {[%emt 0:00:11]} 8. Ne5 {[%emt 0:00:03]} e6 {[%emt 0:00:21]} 9. Qe2 {[%emt 0:00:04]} b5 {[%emt 0:01:00]} 10. Nxc6 {[%emt 0:01:33]} Qc7 {[%emt 0:02:47]} 11. Bd3 {[%emt 0:04:30]} Bb7 {[%emt 0:08:19]} 12. Ne5 {[%emt 0:01:17]} a6 {[%emt 0:07:40]} 13. O-O {[%emt 0:00:54]} Bd6 {[%emt 0:00:32]} 14. Re1 {[%emt 0:00:29]} Nd5 {[%emt 0:09:40]} 15. Nf3 {[%emt 0:38:38]} Nf4 {[%emt 0:05:01]} 16. Qe3 {[%emt 0:00:45]} Bc5 {[%emt 0:05:29]} 17. Qe5 {[%emt 0:00:08]} Qxe5 {[%emt 0:00:21]} 18. Rxe5 {[%emt 0:02:34]} Nxd3 {[%emt 0:03:06]} 19. cxd3 {[%emt 0:00:04]} Bd6 {[%emt 0:01:31]} 20. Re1 {[%emt 0:01:41]} Bxf3 {[%emt 0:02:03]} 21. gxf3 {[%emt 0:00:02]} O-O-O {[%emt 0:05:42]} 22. b3 {[%emt 0:00:55]} Bb8 {[%emt 0:04:07]} 23. a4 {[%emt 0:01:36]} Rxd3 {[%emt 0:03:28]} 24. axb5 {[%emt 0:00:06]} axb5 {[%emt 0:00:03]} 25. Re3 {[%emt 0:00:05]} Rhd8 {[%emt 0:01:13]} 26. Ra5 {[%emt 0:00:21]} R3d5 {[%emt 0:00:48]} 27. Ba3 {[%emt 0:02:24]} Kb7 {[%emt 0:14:08]} 28. Bb4 {[%emt 0:03:13]} Bc7 {[%emt 0:04:58]} 29. Ra2 {[%emt 0:00:37]} Bb6 {[%emt 0:05:56]} 30. Re4 {[%emt 0:00:30]} Rd3 {[%emt 0:00:50]} 31. Rf4 {[%emt 0:01:21]} f6 {[%emt 0:01:42]} 32. Bc3 {[%emt 0:00:33]} Bd4 {[%emt 0:04:03]} 33. Ba5 {[%emt 0:06:09]} Rc8 {[%emt 0:01:10]} 34. Kg2 {[%emt 0:01:44]} e5 {[%emt 0:01:08]} 35. Rh4 {[%emt 0:00:03]} h6 {[%emt 0:00:46]} 36. b4 {[%emt 0:00:46]} Rc1 {[%emt 0:01:18]} 37. Bd8 {[%emt 0:00:25]} Bxf2 {[%emt 0:02:58]} 38. Rg4 {[%emt 0:03:15]} Rg1+ {[%emt 0:00:12]} 39. Kxf2 {[%emt 0:00:04]} Rxg4 {[%emt 0:00:03]} 40. Bxf6 {[%emt 0:00:18]} Rxb4 {[%emt 0:01:49]} 41. Bxg7 {[%emt 0:00:35]} Rbb3 {[%emt 0:00:30]} 42. Bxe5 {[%emt 0:00:18]} Rxf3+ {[%emt 0:00:05]} 43. Ke2 {[%emt 0:00:06]} Rf5 {[%emt 0:00:52]} 44. d4 {[%emt 0:00:38]} h5 {[%emt 0:00:55]} 45. Rc2 {[%emt 0:00:55]} Rff3 {[%emt 0:02:16]} 46. Rc7+ {[%emt 0:00:41]} Kb6 {[%emt 0:00:08]} 47. Rh7 {[%emt 0:00:03]} Rfc3 {[%emt 0:01:10]} 48. Rxh5 {[%emt 0:00:27]} Rb2+ {[%emt 0:00:11]} 49. Kd1 {[%emt 0:00:01]} Rf3 {[%emt 0:00:57]} 50. Rh6+ {[%emt 0:00:06]} Kb7 {[%emt 0:00:29]} 51. Rf6 {[%emt 0:02:23]} Rxf6 {[%emt 0:01:24]} 52. Bxf6 {[%emt 0:00:01]} Rxh2 {[%emt 0:00:24]} 53. d5 {[%emt 0:00:01]} Rh5 {[%emt 0:00:28]} 54. Kc2 {[%emt 0:00:04]} Rxd5 {[%emt 0:00:06]} 55. Kb3 {[%emt 0:00:03]} Kc6 {[%emt 0:00:11]} 56. Be7 {[%emt 0:00:04]} Rd3+ {[%emt 0:00:09]} 57. Kb4 {[%emt 0:00:09]} Rd4+ {[%emt 0:00:23]} 58. Kb3 {[%emt 0:00:01]} Kd5 {[%emt 0:00:10]} 59. Bb4 {[%emt 0:00:04]} Rd3+ {[%emt 0:00:08]} 60. Kc2 {[%emt 0:00:25]} Kc4 {[%emt 0:00:10]} 61. Bd2 {[%emt 0:00:39]} Rxd2+ {[%emt 0:00:17]} 62. Kxd2 {[%emt 0:00:06]} Kb3 {[%emt 0:00:05]} 0-1

[Event "Chinese Championship-B Men 2024"]
[Site "Liaocheng"]
[Date "2024.04.25"]
[Round "9.12"]
[White "Zhang, Zhi"]
[Black "Cheng, Zihan"]
[Result "1/2-1/2"]
[ECO "A30"]
[WhiteElo "1987"]
[BlackElo "1819"]
[Annotator "TA"]
[PlyCount "87"]
[EventDate "2024.04.24"]
[EventType "swiss"]
[EventCountry "CHN"]
[SourceTitle "playchess.com"]
[Source "ChessBase"]
[SourceQuality "1"]
[TimeControl "5400+30"]

{[%evp 17,87,23,54,46,51,49,25,25,29,21,79,16,25,20,31,26,36,0,0,5,0,9,9,0,0,0,0,0,0,0,0,0,0,0,27,6,21,14,12,0,8,0,13,0,0,0,0,-10,0,0,0,-33,-38,-60,0,0,0,0,0,0,0,2,15,0,0,0,0,0,0,0,0,-8]} 1. d4 {[%emt 0:00:03]} Nf6 {[%emt 0:00:12]} 2. Nf3 {[%emt 0:00:02]} g6 {[%emt 0:02:45]} 3. g3 {[%emt 0:00:02]} b6 {[%emt 0:03:27]} 4. Bg2 {[%emt 0:00:41]} Bb7 {[%emt 0:00:01]} 5. O-O {[%emt 0:01:17]} c5 {[%emt 0:00:18]} 6. c4 {[%emt 0:02:52]} cxd4 {[%emt 0:00:52]} 7. Qxd4 {[%emt 0:00:10]} Bg7 {[%emt 0:00:31]} 8. Nc3 {[%emt 0:02:59]} O-O {[%emt 0:00:40]} 9. Qh4 {[%emt 0:02:12]} Na6 {[%emt 0:07:44][%cal Bb8a6,Ba6c5,Bc5e4][%mdl 32]} 10. Bh6 {[%emt 0:06:35]} Nc5 {[%emt 0:07:11]} 11. Bxg7 {[%emt 0:02:39]} Kxg7 {[%emt 0:00:03]} 12. Rfd1 {[%emt 0:00:02] White has an edge.} Nce4 {[%emt 0:03:50]} 13. Nd5 {[%emt 0:07:56]} (13. Nxe4 {simplifies} Bxe4 14. Ne1 Bxg2 15. Nxg2 d6 16. Qd4) 13... Rb8 {[%emt 0:07:28]} (13... e6 $11 {remains equal.} 14. Nxf6 Qxf6) 14. Rac1 {[%emt 0:09:54] White has more active pieces.} (14. Nd4 $16 e6 15. Bxe4 exd5 16. cxd5) 14... e6 $11 {[%emt 0:23:03]} 15. Nxf6 {[%emt 0:10:03]} Qxf6 {[%emt 0:00:34]} 16. Qxf6+ {[%emt 0:00:36]} (16. Rxd7 Qxb2 17. Qf4 Nf6 $15) 16... Nxf6 {[%emt 0:00:25]} 17. Rd6 {[%emt 0:04:23]} Rfc8 {[%emt 0:02:51]} 18. Ne5 {[%emt 0:01:46]} Bxg2 {[%emt 0:06:43]} 19. Kxg2 {[%emt 0:00:02]} Rb7 {[%emt 0:00:30]} 20. Rcd1 {[%emt 0:08:04][%cal Ob2b3]} b5 {[%emt 0:04:17]} 21. b3 {[%emt 0:00:02]} bxc4 {[%emt 0:07:26]} 22. Nxc4 {[%emt 0:00:01]} Rcc7 {[%emt 0:01:00]} 23. R1d4 {[%emt 0:09:14]} Ne8 {[%emt 0:01:15]} 24. Ra6 {[%emt 0:01:28]} d5 {[%emt 0:00:02]} 25. Ne5 {[%emt 0:03:52]} Nf6 {[%emt 0:02:10]} 26. f3 {[%emt 0:04:54]} Nd7 {[%emt 0:01:09]} 27. Nxd7 {[%emt 0:01:15]} Rxd7 {[%emt 0:00:01][%mdl 4096] Endgame. KRR-KRR} 28. f4 {[%emt 0:01:28]} Rdc7 {[%emt 0:05:09]} 29. Kf3 {[%emt 0:00:32]} Rc3+ {[%emt 0:00:31]} 30. e3 {[%emt 0:00:35]} Rbc7 {[%emt 0:04:31]} 31. Rd2 {[%emt 0:01:32]} h5 {[%emt 0:01:07]} 32. h3 {[%emt 0:00:01]} Rd7 {[%emt 0:01:02]} 33. Kf2 {[%emt 0:01:38]} Rdc7 {[%emt 0:01:22]} 34. g4 {[%emt 0:01:18]} h4 {[%emt 0:01:02]} 35. f5 {[%emt 0:03:54]} exf5 {[%emt 0:02:43]} ({Much weaker is} 35... gxf5 36. gxf5 exf5 37. Rxd5 $11) (35... Rc2 $1 $15 36. Ke2 gxf5 (36... exf5 37. gxf5 gxf5 38. Ra4 $11) 37. gxf5 e5 (37... exf5 38. Ra4 $11)) 36. gxf5 {[%emt 0:00:02] The position is equal.} gxf5 {[%emt 0:00:05][%cal Bg6f5,Bf5f4][%mdl 32]} 37. Rxd5 {[%emt 0:04:19]} f4 {[%emt 0:00:35]} 38. Rg5+ {[%emt 0:02:21]} Kf8 {[%emt 0:00:15]} 39. Re5 {[%emt 0:00:02]} Rd7 {[%emt 0:01:14]} 40. Rh6 {[%emt 0:01:00]} Rd2+ {[%emt 0:01:27]} 41. Kf3 {[%emt 0:00:08]} fxe3 {[%emt 0:00:15]} 42. Rxe3 {[%emt 0:00:18]} Rxe3+ {[%emt 0:00:38]} 43. Kxe3 {[%emt 0:00:01]} Rxa2 {[%emt 0:00:31]} 44. Ke4 {[%emt 0:10:17] Weighted Error Value: White=0.09 (flawless) /Black=0.09 (flawless) .  Mistake:       	White=1     	Black=2      Inaccurate:     	White=2     	Black=1      OK:         	White=13    	Black=13     Best:        	White=1     	Black=2} 1/2-1/2

[Event "Chinese Championship-B Men 2024"]
[Site "Liaocheng"]
[Date "2024.04.25"]
[Round "9.13"]
[White "Liu, Bei"]
[Black "Ye, Fan(Zj)"]
[Result "1-0"]
[ECO "A61"]
[WhiteElo "1964"]
[BlackElo "1899"]
[Annotator "NA RC"]
[PlyCount "73"]
[EventDate "2024.04.24"]
[EventType "swiss"]
[EventCountry "CHN"]
[SourceTitle "playchess.com"]
[Source "ChessBase"]
[SourceQuality "1"]
[TimeControl "5400+30"]

1. d4 {[%emt 0:00:25]} Nf6 {[%emt 0:00:04]} 2. c4 {[%emt 0:00:03]} e6 {[%emt 0:00:06]} 3. Nf3 {[%emt 0:00:04]} c5 {[%emt 0:00:10]} 4. d5 {[%emt 0:00:04]} exd5 {[%emt 0:00:04]} 5. cxd5 {[%emt 0:00:04]} d6 {[%emt 0:00:05]} 6. Nc3 {[%emt 0:00:04]} g6 {[%emt 0:00:09]} 7. h3 {[%emt 0:00:08]} Bg7 {[%emt 0:00:07]} 8. Bf4 {[%emt 0:00:06]} O-O {[%emt 0:01:16]} 9. e3 {[%emt 0:00:05]} Nh5 {[%emt 0:03:55]} 10. Bh2 {[%emt 0:00:26]} f5 {[%emt 0:01:27]} 11. Be2 {[%emt 0:01:17]} f4 {[%emt 0:03:09]} 12. O-O {[%emt 0:02:57]} Qe7 {[%emt 0:04:41]} 13. Re1 {[%emt 0:22:09]} (13. Qc2 $16) 13... Nd7 {[%emt 0:04:47]} (13... fxe3 $14 14. Bf1 exf2+ 15. Kxf2 Qf7) 14. Kh1 {[%emt 0:05:38]} a6 {[%emt 0:29:24]} 15. a4 {[%emt 0:00:19]} (15. Ng1 $16) 15... Kh8 {[%emt 0:10:55]} (15... fxe3 $11 16. Bd3 Bd4) 16. a5 {[%emt 0:04:07]} (16. Ng1 $16) 16... Rb8 {[%emt 0:05:05]} (16... fxe3 $14 17. Bf1 Bh6) 17. Nd2 $16 {[%emt 0:05:21]} Bxc3 18. bxc3 {[%emt 0:00:09]} Nhf6 {[%emt 0:24:55]} 19. exf4 {[%emt 0:01:43]} Qf7 {[%emt 0:03:14]} 20. c4 {[%emt 0:01:20]} b5 {[%emt 0:01:58]} 21. axb6 {[%emt 0:00:22]} Nxb6 {[%emt 0:00:40]} 22. f5 {[%emt 0:01:55]} Ne8 {[%emt 0:00:44]} 23. Ne4 {[%emt 0:04:10]} Qc7 {[%emt 0:00:42]} 24. fxg6 {[%emt 0:00:49]} hxg6 {[%emt 0:00:10]} 25. Bd3 {[%emt 0:00:41]} Bf5 {[%emt 0:01:58]} 26. Rxa6 {[%emt 0:03:39]} Bxe4 {[%emt 0:00:57]} 27. Rxe4 {[%emt 0:00:28]} Rxf2 {[%emt 0:00:58]} 28. Qe1 {[%emt 0:02:27]} Qf7 {[%emt 0:01:38]} 29. Rxb6 {[%emt 0:01:07]} Rxb6 {[%emt 0:00:20]} 30. Rxe8+ {[%emt 0:00:02]} Kg7 {[%emt 0:01:01]} 31. Re7 {[%emt 0:00:15]} Rb3 {[%emt 0:00:34]} 32. Bxd6 {[%emt 0:02:26]} Rxd3 {[%emt 0:01:17]} 33. Qxf2 {[%emt 0:00:18]} Rd1+ {[%emt 0:00:00]} 34. Kh2 {[%emt 0:00:01]} Qxe7 {[%emt 0:00:00]} 35. Bxe7 {[%emt 0:00:01]} g5 {[%emt 0:00:00]} 36. Qf6+ {[%emt 0:00:13]} Kh7 {[%emt 0:00:09]} 37. Qf7+ {[%emt 0:00:07]} 1-0

[Event "Chinese Championship-B Men 2024"]
[Site "Liaocheng"]
[Date "2024.04.25"]
[Round "9.14"]
[White "Jin, Ruijun"]
[Black "Wang, Fan"]
[Result "1-0"]
[ECO "D55"]
[WhiteElo "1819"]
[BlackElo "1932"]
[Annotator "NA RC"]
[PlyCount "65"]
[EventDate "2024.04.24"]
[EventType "swiss"]
[EventCountry "CHN"]
[SourceTitle "playchess.com"]
[Source "ChessBase"]
[SourceQuality "1"]
[TimeControl "5400+30"]

1. d4 {[%emt 0:00:10]} d5 {[%emt 0:00:13]} 2. c4 {[%emt 0:00:12]} e6 {[%emt 0:00:05]} 3. Nc3 {[%emt 0:00:08]} Nf6 {[%emt 0:00:06]} 4. Bg5 {[%emt 0:00:18]} Be7 {[%emt 0:00:18]} 5. Nf3 {[%emt 0:00:27]} h6 {[%emt 0:00:20]} 6. Bxf6 {[%emt 0:00:12]} Bxf6 {[%emt 1:32:28]} 7. e3 {[%emt 0:00:10]} O-O {[%emt 0:00:00]} 8. Rc1 {[%emt 0:00:12]} c6 {[%emt 0:00:00]} 9. h4 {[%emt 0:00:24] D55: Queen's Gambit Declined: 4 Bg5 Be7: Lines without ...h6 and 6...h6 7 Bxf6.} Nd7 {[%emt 0:00:00]} 10. g4 {[%emt 1:33:17]} g6 {[%emt 0:00:00]} 11. g5 {[%emt 0:00:00]} hxg5 {[%emt 0:00:00]} 12. hxg5 {[%emt 0:00:00]} Bxg5 {[%emt 0:00:00]} 13. Nxg5 {[%emt 0:00:00]} Qxg5 {[%emt 0:00:00]} 14. f4 {[%emt 0:00:00]} Qg3+ {[%emt 0:00:00]} 15. Kd2 {[%emt 0:00:00]} c5 {[%emt 0:00:00]} 16. Kc2 {[%emt 0:00:00]} (16. cxd5 $2 {perishes.} cxd4 17. exd4 Qxf4+ 18. Kc2 exd5 $19) (16. Rh3 $1 $11 {remains equal.} Qf2+ 17. Be2) 16... Nf6 {[%emt 0:00:00]} ({Better is} 16... Qxe3 $15 17. Qg4 Qxd4 (17... cxd4 $2 {is the wrong capture.} 18. Qh4 $18) 18. cxd5 Nf6 (18... exd5 $2 {too greedy.} 19. Qh4 $18)) 17. Rh3 {[%emt 0:00:00]} Qf2+ {[%emt 0:00:00]} (17... Qg4 $1 $11) 18. Kb1 {[%emt 0:00:00]} e5 {[%emt 0:00:00]} 19. Rf3 {[%emt 0:00:00]} Bf5+ {[%emt 0:00:00]} (19... Qh2 $16) 20. Ka1 {[%emt 0:00:00]} Qg1 {[%emt 0:00:00]} 21. fxe5 $18 {[%emt 0:00:00]} ({Not} 21. dxe5 Ne4 $16 (21... d4 $2 22. exd4 Nh5 23. Ne2 $18)) 21... Ne4 {[%emt 0:00:00]} 22. Rxf5 {[%emt 0:00:00]} gxf5 {[%emt 0:00:00]} 23. Nxe4 {[%emt 0:00:00]} dxe4 {[%emt 0:00:00]} 24. Rc2 {[%emt 0:00:00]} Qh1 {[%emt 0:00:00]} 25. Rg2+ {[%emt 0:00:00]} Kh7 {[%emt 0:00:00]} 26. Qe2 {[%emt 0:00:00]} Rh8 {[%emt 0:00:00]} 27. Rh2+ {[%emt 0:00:00]} Qxh2 {[%emt 0:00:00]} 28. Qxh2+ {[%emt 0:00:00]} Kg7 {[%emt 0:00:00]} 29. Qf4 {[%emt 0:00:00]} Rh5 {[%emt 0:00:00]} 30. a3 {[%emt 0:00:00]} Kg6 {[%emt 0:00:00]} 31. Bg2 {[%emt 0:00:00]} Rd8 {[%emt 0:00:00]} 32. Bxe4 {[%emt 0:00:00]} fxe4 {[%emt 0:00:00]} 33. Qf6+ {[%emt 0:00:00]} 1-0

[Event "Chinese Championship-B Men 2024"]
[Site "Liaocheng"]
[Date "2024.04.25"]
[Round "9.15"]
[White "Xu, Wei"]
[Black "Qu, Haoming"]
[Result "0-1"]
[ECO "A04"]
[WhiteElo "2047"]
[BlackElo "1786"]
[Annotator "TA"]
[PlyCount "62"]
[EventDate "2024.04.24"]
[EventType "swiss"]
[EventCountry "CHN"]
[SourceTitle "playchess.com"]
[Source "ChessBase"]
[SourceQuality "1"]
[TimeControl "5400+30"]

{[%evp 9,62,12,22,2,5,9,21,1,22,0,4,-8,-11,-24,-16,-20,0,-25,0,-94,-106,-99,-91,-113,-90,-139,-114,-132,-102,-108,-102,-125,-66,-100,-89,-91,-71,-109,51,53,54,-62,-56,-250,-147,-205,-179,-167,-171,-447,-439,-1031,-1023,-1379,-1373]} 1. Nf3 {[%emt 0:04:14]} d6 {[%emt 0:00:29]} 2. b3 {[%emt 0:03:03]} e5 {[%emt 0:01:38]} 3. e4 {[%emt 0:00:29]} Nf6 {[%emt 0:00:13]} 4. Nc3 {[%emt 0:00:06]} Be7 {[%emt 0:00:16]} 5. d4 {[%emt 0:01:36]} exd4 {[%emt 0:00:08]} 6. Nxd4 {[%emt 0:00:12]} O-O {[%emt 0:00:13]} 7. Be2 {[%emt 0:09:19]} Re8 {[%emt 0:00:54]} 8. O-O {[%emt 0:00:11] The position is equal.} c6 {[%emt 0:00:17]} 9. Bb2 {[%emt 0:00:48]} Bf8 {[%emt 0:03:17][%cal Ob8d7]} 10. Bf3 {[%emt 0:02:54]} Nbd7 {[%emt 0:01:28]} 11. Re1 {[%emt 0:00:09]} Ne5 {[%emt 0:03:20]} 12. Be2 {[%emt 0:00:19]} Qc7 {[%emt 0:00:40]} 13. Qd2 {[%emt 0:05:35]} Bd7 {[%emt 0:02:10]} 14. Nf5 {[%emt 0:05:27]} (14. f4 $11 Ng6 15. Bd3) 14... Bxf5 $1 $17 {[%emt 0:14:55]} 15. exf5 {[%emt 0:00:05]} d5 {[%emt 0:00:15]} 16. h3 {[%emt 0:03:57]} Bc5 {[%emt 0:06:40]} 17. Qg5 {[%emt 0:06:38]} ({Better is} 17. Rad1) 17... a6 {[%emt 0:24:22]} 18. Rad1 {[%emt 0:04:30]} Rad8 {[%emt 0:00:43]} 19. Qh4 {[%emt 0:04:39]} Ba7 {[%emt 0:02:27]} 20. Bc1 {[%emt 0:13:44]} Bb8 {[%emt 0:08:46]} (20... Qc8 $17 21. g4 d4) 21. f4 {[%emt 0:05:49][%cal Og2g4]} Ned7 {[%emt 0:00:59]} 22. Bf3 {[%emt 0:03:49]} Nc5 {[%emt 0:10:36]} 23. g4 {[%emt 0:02:24] [#]} Nce4 $2 {[%emt 0:01:56]} (23... Qa5 $1 $17 {[%cal Ra5c3]} 24. Bb2 Nce4 (24... Bxf4 25. g5 $15) 25. Bxe4 (25. Nxe4 $2 dxe4 26. Rxd8 Qxd8 $19) 25... dxe4 26. Rxd8 (26. Nxe4 $2 Rxe4 27. Rxd8+ Qxd8 $19) 26... Rxd8 (26... Qxd8 27. Qf2 $17)) 24. Bxe4 $1 $14 {[%emt 0:03:46]} dxe4 {[%emt 0:00:14]} 25. Be3 {[%emt 0:02:34] Prevents Ba7.} (25. Nxe4 $14 Rxd1 26. Nxf6+ gxf6 27. Rxd1) 25... Qa5 $15 {[%emt 0:00:51]} 26. Ne2 {[%emt 0:03:55] [#] Loses the game.} ({White should try} 26. Rxd8 $15 Rxd8 27. Na4) 26... Nd5 {[%emt 0:00:37]} (26... Qxa2 27. Rxd8 Rxd8 28. g5 $11) ({Black should play} 26... Rxd1 $1 $19 27. Rxd1 Qxa2) 27. Bd4 {[%emt 0:02:35]} (27. Qf2 $17 {keeps fighting.}) 27... Nxf4 {[%emt 0:00:29]} (27... Bxf4 28. c4 Be3+ 29. Bxe3 Nxe3 30. Rxd8 Qxd8 (30... Rxd8 31. b4 $15) 31. Qxd8 Rxd8 32. Nf4 $11) 28. Nxf4 {[%emt 0:00:43]} Bxf4 {[%emt 0:00:00]} 29. g5 $2 {[%emt 0:02:07]} (29. Qf2 {was the only chance.} c5 30. Be3 (30. Bxg7 $2 Rxd1 31. Rxd1 e3 $19) 30... Bxe3 31. Qxe3) 29... Qxf5 $19 {[%emt 0:01:00][%cal Oe4e3] And now ...e3! would win. Black is clearly winning.} 30. Kh1 {[%emt 0:00:32]} (30. Qg4 $142 Qxg5 31. Qxg5 Bxg5 32. Kf1) 30... e3 {[%emt 0:00:42][%cal Oe3e2] ( -> ...e2!)} 31. Kg1 {[%emt 0:02:28]} Qe4 {[%emt 0:00:18] Weighted Error Value: White=0.98/Black=0.24 (precise) .  Loses game:     	White=1     	---        Mistake:       	White=6     	Black=3      Inaccurate:     	White=3     	---        OK:         	White=3     	Black=8      Best:        	---       	Black=1      Strong:       	White=1     	Black=1} 0-1

[Event "Chinese Championship-B Men 2024"]
[Site "Liaocheng"]
[Date "2024.04.25"]
[Round "10.1"]
[White "Zhang, Ziji"]
[Black "Meng, Yihan"]
[Result "1/2-1/2"]
[ECO "D27"]
[WhiteElo "2392"]
[BlackElo "2042"]
[Annotator "TA"]
[PlyCount "60"]
[EventDate "2024.04.24"]
[EventType "swiss"]
[EventCountry "CHN"]
[SourceTitle "playchess.com"]
[Source "ChessBase"]
[SourceQuality "1"]
[TimeControl "5400+30"]

{[%evp 16,60,16,12,21,29,13,10,47,24,47,35,81,45,69,63,64,55,66,22,23,20,13,12,24,19,25,0,33,35,40,55,56,54,67,28,34,10,79,0,0,0,0,0,0,0,0]} 1. d4 {[%emt 0:00:16]} d5 {[%emt 0:00:06]} 2. c4 {[%emt 0:00:41]} dxc4 {[%emt 0:00:05]} 3. Nf3 {[%emt 0:00:30]} Nf6 {[%emt 0:00:07]} 4. e3 {[%emt 0:00:12]} e6 {[%emt 0:00:05]} 5. Bxc4 {[%emt 0:00:05]} c5 {[%emt 0:00:04]} 6. O-O {[%emt 0:00:31]} a6 {[%emt 0:00:03]} 7. dxc5 {[%emt 0:00:52]} Qxd1 {[%emt 0:00:07]} 8. Rxd1 {[%emt 0:00:03]} Bxc5 {[%emt 0:00:07]} 9. Be2 {[%emt 0:01:31]} O-O {[%emt 0:00:36]} 10. Ne5 {[%emt 0:02:38]} Nbd7 {[%emt 0:20:22]} 11. Nc4 {[%emt 0:03:00]} Rd8 {[%emt 0:01:57]} 12. Nc3 {[%emt 0:02:24]} b5 {[%emt 0:08:51][%cal Bb7b5,Bb5b4,Bb4b3][%mdl 32]} 13. Na5 {[%emt 0:04:48] [#] And now Bf3 would win.} Re8 {[%emt 0:00:53]} (13... Rf8 $14) 14. Bd2 {[%emt 0:16:54] White is more active.} Bb6 {[%emt 0:17:09]} 15. b4 {[%emt 0:16:01]} Bxa5 {[%emt 0:20:02]} 16. bxa5 {[%emt 0:00:05]} Bb7 {[%emt 0:00:51]} 17. a4 {[%emt 0:15:57]} b4 {[%emt 0:02:27]} 18. Na2 {[%emt 0:00:07]} b3 {[%emt 0:00:23]} 19. Rdb1 {[%emt 0:01:44]} Nc5 {[%emt 0:01:29]} 20. Nb4 {[%emt 0:06:24]} Red8 {[%emt 0:13:00]} 21. Be1 {[%emt 0:03:29]} Nfd7 {[%emt 0:07:57][%cal Bf6d7,Bd7e5,Be5c4][%mdl 32]} 22. Bc4 {[%emt 0:02:56]} Ne5 {[%emt 0:00:37]} 23. Bxb3 {[%emt 0:00:20]} Nxb3 {[%emt 0:02:27]} 24. Rxb3 {[%emt 0:00:05]} Nc4 {[%emt 0:00:35]} 25. Na2 {[%emt 0:05:33]} Bd5 {[%emt 0:00:22][%cal Oc4a5]} 26. Rbb1 {[%emt 0:00:52]} Rab8 {[%emt 0:00:38]} (26... f6 $11) 27. Bb4 {[%emt 0:02:44]} ({White should play} 27. Rxb8 $16 Rxb8 28. Nb4) 27... Nxa5 $11 {[%emt 0:02:08] The position is equal.} 28. Bxa5 {[%emt 0:00:33]} Rxb1+ {[%emt 0:00:08]} 29. Rxb1 {[%emt 0:00:06]} Bxa2 {[%emt 0:00:03]} 30. Bxd8 {[%emt 0:00:23]} Bxb1 {[%emt 0:00:04] Weighted Error Value: White=0.14 (very precise) /Black=0.17 (very precise) .  Mistake:       	White=1     	Black=2      Inaccurate:     	White=3     	Black=2      OK:         	White=7     	Black=7      Best:        	---       	Black=2} 1/2-1/2